Workbook

Sheet Sheet2
A1: Ryan | B1: Thomas | C1: Hunter PCP | E1: Norris | F1: Michael | G1: Open PCP | I1: Ryan | J1: Thomas | K1: Hunter PCP | M1: Norris | N1: Michael | O1: Open PCP | Q1: Andro | R1: Ted | S1: Hunter PCP | U1: Apelles | V1: Hans | W1: Open PCP | Y1: Andro | Z1: Ted | AA1: Hunter PCP | AC1: Apelles | AD1: Hans | AE1: Open PCP
A2: Day | B2: Bill | C2: Hunter PCP | E2: Barker | F2: Roger | G2: Open PCP | I2: Day | J2: Bill | K2: Hunter PCP | M2: Barker | N2: Roger | O2: Open PCP | Q2: Baker | R2: Dennis | S2: Hunter PCP | U2: Barker | V2: Roger | W2: Open PCP | Y2: Baker | Z2: Dennis | AA2: Hunter PCP | AC2: Barker | AD2: Roger | AE2: Open PCP
A3: Himes | B3: Thomas | C3: Hunter PCP | E3: VanLiew | F3: Brian | G3: Open PCP | I3: Himes | J3: Thomas | K3: Hunter PCP | M3: VanLiew | N3: Brian | O3: Open PCP | Q3: Burley | R3: Ken | S3: Hunter PCP | U3: Eden | V3: Dennis | W3: Open PCP | Y3: Burley | Z3: Ken | AA3: Hunter PCP | AC3: Eden | AD3: Dennis | AE3: Open PCP
A4: Eroh | B4: John | C4: Hunter PCP | E4: Porch | F4: Paul | G4: Open PCP | I4: Eroh | J4: John | K4: Hunter PCP | M4: Porch | N4: Paul | O4: Open PCP | Q4: Burley | R4: Susan | S4: Hunter PCP | U4: Hann | V4: Lanny | W4: Open PCP | Y4: Burley | Z4: Susan | AA4: Hunter PCP | AC4: Hann | AD4: Lanny | AE4: Open PCP
A5: Miller | B5: Wally | C5: Hunter PCP | E5: Piatt | F5: Will | G5: Open PCP | I5: Miller | J5: Wally | K5: Hunter PCP | M5: Piatt | N5: Will | O5: Open PCP | Q5: Cimbalo | R5: John | S5: Hunter PCP | U5: LaRocca | V5: Gary | W5: Open PCP | Y5: Cimbalo | Z5: John | AA5: Hunter PCP | AC5: LaRocca | AD5: Gary | AE5: Open PCP
A6: Little | B6: Jeff | C6: Hunter PCP | E6: Povroznyk | F6: Vasyl | G6: Open PCP | I6: Little | J6: Jeff | K6: Hunter PCP | M6: Povroznyk | N6: Vasyl | O6: Open PCP | Q6: Daigneault | R6: Tom | S6: Hunter PCP | U6: Norris | V6: Michael | W6: Open PCP | Y6: Daigneault | Z6: Tom | AA6: Hunter PCP | AC6: Norris | AD6: Michael | AE6: Open PCP
A7: Kunkle | B7: Kevin | C7: Hunter PCP | E7: Tenney | F7: Skip (Noel) | G7: Open PCP | I7: Kunkle | J7: Kevin | K7: Hunter PCP | M7: Tenney | N7: Skip (Noel) | O7: Open PCP | Q7: Day | R7: Bill | S7: Hunter PCP | U7: Otter | V7: Albert | W7: Open PCP | Y7: Day | Z7: Bill | AA7: Hunter PCP | AC7: Otter | AD7: Albert | AE7: Open PCP
A8: Kentner | B8: Chad | C8: Hunter PCP | E8: Apelles | F8: Hans | G8: Open PCP | I8: Kentner | J8: Chad | K8: Hunter PCP | M8: Apelles | N8: Hans | O8: Open PCP | Q8: DeBoard | R8: Mark | S8: Hunter PCP | U8: Palinkas | V8: Gary | W8: Open PCP | Y8: DeBoard | Z8: Mark | AA8: Hunter PCP | AC8: Palinkas | AD8: Gary | AE8: Open PCP
A9: VanWhy | B9: Daryl | C9: Hunter PCP | E9: Otter | F9: Albert | G9: Open PCP | I9: VanWhy | J9: Daryl | K9: Hunter PCP | M9: Otter | N9: Albert | O9: Open PCP | Q9: Dipple | R9: Greg | S9: Hunter PCP | U9: Paulsen | V9: Rosalie | W9: Open PCP | Y9: Dipple | Z9: Greg | AA9: Hunter PCP | AC9: Paulsen | AD9: Rosalie | AE9: Open PCP
A10: Pragle | B10: Shawn | C10: Hunter PCP | E10: Paulsen | F10: Rosalie | G10: Open PCP | I10: Pragle | J10: Shawn | K10: Hunter PCP | M10: Paulsen | N10: Rosalie | O10: Open PCP | Q10: Dunlap | R10: Betsy | S10: Hunter PCP | U10: Piatt | V10: Will | W10: Open PCP | Y10: Dunlap | Z10: Betsy | AA10: Hunter PCP | AC10: Piatt | AD10: Will | AE10: Open PCP
A11: Baker | B11: Dennis | C11: Hunter PCP | E11: Eden | F11: Dennis | G11: Open PCP | I11: Baker | J11: Dennis | K11: Hunter PCP | M11: Eden | N11: Dennis | O11: Open PCP | Q11: Dunlap | R11: Douglas | S11: Hunter PCP | U11: Porch | V11: Paul | W11: Open PCP | Y11: Dunlap | Z11: Douglas | AA11: Hunter PCP | AC11: Porch | AD11: Paul | AE11: Open PCP
A12: Rouillard | B12: Louis-Philippe | C12: Hunter PCP | E12: Hann | F12: Lanny | G12: Open PCP | I12: Rouillard | J12: Louis-Philippe | K12: Hunter PCP | M12: Hann | N12: Lanny | O12: Open PCP | Q12: Duranti | R12: Bill | S12: Hunter PCP | U12: Povroznyk | V12: Vasyl | W12: Open PCP | Y12: Duranti | Z12: Bill | AA12: Hunter PCP | AC12: Povroznyk | AD12: Vasyl | AE12: Open PCP
A13: Szeles | B13: Nora | C13: Hunter PCP | E13: LaRocca | F13: Gary | G13: Open PCP | I13: Szeles | J13: Nora | K13: Hunter PCP | M13: LaRocca | N13: Gary | O13: Open PCP | Q13: Felton, Jr. | R13: Robert | S13: Hunter PCP | U13: Tenney | V13: Skip (Noel) | W13: Open PCP | Y13: Felton, Jr. | Z13: Robert | AA13: Hunter PCP | AC13: Tenney | AD13: Skip (Noel) | AE13: Open PCP
A14: Felton, Jr. | B14: Robert | C14: Hunter PCP | E14: Garland | F14: Anthony | G14: Open Piston | I14: Felton, Jr. | J14: Robert | K14: Hunter PCP | M14: Garland | N14: Anthony | O14: Open Piston | Q14: Hargarther | R14: Nic | S14: Hunter PCP | U14: VanLiew | V14: Brian | W14: Open PCP | Y14: Hargarther | Z14: Nic | AA14: Hunter PCP | AC14: VanLiew | AD14: Brian | AE14: Open PCP
A15: Miller | B15: Tom | C15: Hunter PCP | E15: Vandenboom | F15: Brian | G15: WFTF PCP | I15: Miller | J15: Tom | K15: Hunter PCP | M15: Vandenboom | N15: Brian | O15: WFTF PCP | Q15: Hargarther Jr. | R15: Nicholas | S15: Hunter PCP | U15: Garland | V15: Anthony | W15: Open Piston | Y15: Hargarther Jr. | Z15: Nicholas | AA15: Hunter PCP | AC15: Garland | AD15: Anthony | AE15: Open Piston
A16: Duranti | B16: Bill | C16: Hunter PCP | E16: Bassett | F16: Richard | G16: WFTF PCP | I16: Duranti | J16: Bill | K16: Hunter PCP | M16: Bassett | N16: Richard | O16: WFTF PCP | Q16: Himes | R16: Thomas | S16: Hunter PCP | U16: Bassett | V16: Richard | W16: WFTF PCP | Y16: Himes | Z16: Thomas | AA16: Hunter PCP | AC16: Bassett | AD16: Richard | AE16: WFTF PCP
A17: Ours | B17: Joe | C17: Hunter PCP | E17: Snyder | F17: Joseph | G17: WFTF PCP | I17: Ours | J17: Joe | K17: Hunter PCP | M17: Snyder | N17: Joseph | O17: WFTF PCP | Q17: Himes | R17: Dennis | S17: Hunter PCP | U17: Brooks | V17: Peter | W17: WFTF PCP | Y17: Himes | Z17: Dennis | AA17: Hunter PCP | AC17: Brooks | AD17: Peter | AE17: WFTF PCP
A18: Tenney | B18: Ed | C18: Hunter PCP | E18: Sauve | F18: Greg | G18: WFTF PCP | I18: Tenney | J18: Ed | K18: Hunter PCP | M18: Sauve | N18: Greg | O18: WFTF PCP | Q18: Kentner | R18: Chad | S18: Hunter PCP | U18: Brown | V18: Ron | W18: WFTF PCP | Y18: Kentner | Z18: Chad | AA18: Hunter PCP | AC18: Brown | AD18: Ron | AE18: WFTF PCP
A19: Tenney | B19: Sue | C19: Hunter PCP | E19: Holland | F19: Tom | G19: WFTF PCP | I19: Tenney | J19: Sue | K19: Hunter PCP | M19: Holland | N19: Tom | O19: WFTF PCP | Q19: Kunkle | R19: Kevin | S19: Hunter PCP | U19: Coss | V19: Kristen | W19: WFTF PCP | Y19: Kunkle | Z19: Kevin | AA19: Hunter PCP | AC19: Coss | AD19: Kristen | AE19: WFTF PCP
A20: Vaughan | B20: Gregory | C20: Hunter PCP | E20: Rabbitt | F20: Bill | G20: WFTF PCP | I20: Vaughan | J20: Gregory | K20: Hunter PCP | M20: Rabbitt | N20: Bill | O20: WFTF PCP | Q20: Little | R20: Jeff | S20: Hunter PCP | U20: Eroh | V20: John | W20: WFTF PCP | Y20: Landry | Z20: Ryan | AA20: Hunter PCP | AC20: Eroh | AD20: John | AE20: WFTF PCP
A21: Wade | B21: Thomas | C21: Hunter PCP | E21: Brooks | F21: Peter | G21: WFTF PCP | I21: Wade | J21: Thomas | K21: Hunter PCP | M21: Brooks | N21: Peter | O21: WFTF PCP | Q21: McDaniel | R21: Sean | S21: Hunter PCP | U21: Harris | V21: Mike | W21: WFTF PCP | Y21: Little | Z21: Jeff | AA21: Hunter PCP | AC21: Harris | AD21: Mike | AE21: WFTF PCP
A22: Vaeth | B22: Richard | C22: Hunter PCP | E22: Brown | F22: Ron | G22: WFTF PCP | I22: Vaeth | J22: Richard | K22: Hunter PCP | M22: Brown | N22: Ron | O22: WFTF PCP | Q22: McIntosh | R22: Robert | S22: Hunter PCP | U22: Harris | V22: Jamir | W22: WFTF PCP | Y22: McDaniel | Z22: Sean | AA22: Hunter PCP | AC22: Harris | AD22: Jamir | AE22: WFTF PCP
A23: McIntosh | B23: Robert | C23: Hunter PCP | E23: Parsons | F23: Lauren | G23: WFTF PCP | I23: McIntosh | J23: Robert | K23: Hunter PCP | M23: Parsons | N23: Lauren | O23: WFTF PCP | Q23: Miller | R23: Wally | S23: Hunter PCP | U23: Holland | V23: Tom | W23: WFTF PCP | Y23: McIntosh | Z23: Robert | AA23: Hunter PCP | AC23: Holland | AD23: Tom | AE23: WFTF PCP
A24: Himes | B24: Dennis | C24: Hunter PCP | E24: Morales | F24: Manuel | G24: WFTF PCP | I24: Himes | J24: Dennis | K24: Hunter PCP | M24: Morales | N24: Manuel | O24: WFTF PCP | Q24: Miller | R24: Tom | S24: Hunter PCP | U24: Hughes | V24: Ken | W24: WFTF PCP | Y24: Miller | Z24: Wally | AA24: Hunter PCP | AC24: Hughes | AD24: Ken | AE24: WFTF PCP
A25: Burley | B25: Ken | C25: Hunter PCP | E25: Hughes | F25: Ken | G25: WFTF PCP | I25: Burley | J25: Ken | K25: Hunter PCP | M25: Hughes | N25: Ken | O25: WFTF PCP | Q25: Morrison Sr. | R25: Jody | S25: Hunter PCP | U25: Morales | V25: Manuel | W25: WFTF PCP | Y25: Miller | Z25: Tom | AA25: Hunter PCP | AC25: Morales | AD25: Manuel | AE25: WFTF PCP
A26: Burley | B26: Susan | C26: Hunter PCP | E26: Thomas | F26: Glenn | G26: WFTF PCP | I26: Burley | J26: Susan | K26: Hunter PCP | M26: Thomas | N26: Glenn | O26: WFTF PCP | Q26: Ours | R26: Joe | S26: Hunter PCP | U26: Paddock | V26: Jeff | W26: WFTF PCP | Y26: Morrison Sr. | Z26: Jody | AA26: Hunter PCP | AC26: Paddock | AD26: Jeff | AE26: WFTF PCP
A27: Rogers | B27: Douglas | C27: Hunter PCP | E27: Paddock | F27: Jeff | G27: WFTF PCP | I27: Rogers | J27: Douglas | K27: Hunter PCP | M27: Paddock | N27: Jeff | O27: WFTF PCP | Q27: Pragle | R27: Shawn | S27: Hunter PCP | U27: Parsons | V27: Lauren | W27: WFTF PCP | Y27: Ours | Z27: Joe | AA27: Hunter PCP | AC27: Parsons | AD27: Lauren | AE27: WFTF PCP
A28: Rogers | B28: Levi | C28: Hunter PCP | E28: Patner | F28: Tyler | G28: WFTF PCP | I28: Rogers | J28: Levi | K28: Hunter PCP | M28: Patner | N28: Tyler | O28: WFTF PCP | Q28: Rehm | R28: Rick | S28: Hunter PCP | U28: Patner | V28: Tyler | W28: WFTF PCP | Y28: Pragle | Z28: Shawn | AA28: Hunter PCP | AC28: Patner | AD28: Tyler | AE28: WFTF PCP
A29: Dunlap | B29: Betsy | C29: Hunter PCP | E29: Coss | F29: Kristen | G29: WFTF PCP | I29: Dunlap | J29: Betsy | K29: Hunter PCP | M29: Coss | N29: Kristen | O29: WFTF PCP | Q29: Rogers | R29: Douglas | S29: Hunter PCP | U29: Rabbitt | V29: Bill | W29: WFTF PCP | Y29: Rehm | Z29: Rick | AA29: Hunter PCP | AC29: Rabbitt | AD29: Bill | AE29: WFTF PCP
A30: Dunlap | B30: Douglas | C30: Hunter PCP | E30: Harris | F30: Mike | G30: WFTF PCP | I30: Dunlap | J30: Douglas | K30: Hunter PCP | M30: Harris | N30: Mike | O30: WFTF PCP | Q30: Rogers | R30: Levi | S30: Hunter PCP | U30: Sauve | V30: Greg | W30: WFTF PCP | Y30: Rogers | Z30: Douglas | AA30: Hunter PCP | AC30: Sauve | AD30: Greg | AE30: WFTF PCP
A31: Andro | B31: Ted | C31: Hunter PCP | E31: Harris | F31: Jamir | G31: WFTF PCP | I31: Andro | J31: Ted | K31: Hunter PCP | M31: Harris | N31: Jamir | O31: WFTF PCP | Q31: Rouillard | R31: Louis-Philippe | S31: Hunter PCP | U31: Snyder | V31: Joseph | W31: WFTF PCP | Y31: Rogers | Z31: Levi | AA31: Hunter PCP | AC31: Snyder | AD31: Joseph | AE31: WFTF PCP
A32: Cimbalo | B32: John | C32: Hunter PCP | E32: LaRocca | F32: Jerry | G32: WFTF Piston | I32: Cimbalo | J32: John | K32: Hunter PCP | M32: LaRocca | N32: Jerry | O32: WFTF Piston | Q32: Ryan | R32: Thomas | S32: Hunter PCP | U32: Thomas | V32: Glenn | W32: WFTF PCP | Y32: Rouillard | Z32: Louis-Philippe | AA32: Hunter PCP | AC32: Thomas | AD32: Glenn | AE32: WFTF PCP
A33: Dipple | B33: Greg | C33: Hunter PCP | E33: Gonzales | F33: Virgilio | G33: WFTF Piston | I33: Dipple | J33: Greg | K33: Hunter PCP | M33: Gonzales | N33: Virgilio | O33: WFTF Piston | Q33: Szeles | R33: Nora | S33: Hunter PCP | U33: Vandenboom | V33: Brian | W33: WFTF PCP | Y33: Ryan | Z33: Thomas | AA33: Hunter PCP | AC33: Vandenboom | AD33: Brian | AE33: WFTF PCP
A34: Daigneault | B34: Tom | C34: Hunter PCP | E34: MacSweyn | F34: Tim | G34: WFTF Piston | I34: Daigneault | J34: Tom | K34: Hunter PCP | M34: MacSweyn | N34: Tim | O34: WFTF Piston | Q34: Tenney | R34: Ed | S34: Hunter PCP | U34: Apelles | V34: Raymond | W34: WFTF Piston | Y34: Szeles | Z34: Nora | AA34: Hunter PCP | AC34: Apelles | AD34: Raymond | AE34: WFTF Piston
A35: McDaniel | B35: Sean | C35: Hunter PCP | E35: Medina-Gomez | F35: Hector | G35: WFTF Piston | I35: Morrison Sr. | J35: Jody | K35: Hunter PCP | M35: Medina-Gomez | N35: Hector | O35: WFTF Piston | Q35: Tenney | R35: Sue | S35: Hunter PCP | U35: Brackett | V35: Matt | W35: WFTF Piston | Y35: Tenney | Z35: Ed | AA35: Hunter PCP | AC35: Brackett | AD35: Matt | AE35: WFTF Piston
A36: Manktelow | B36: Paul | C36: Hunter Piston | E36: Apelles | F36: Raymond | G36: WFTF Piston | I36: Rehm | J36: Rick | K36: Hunter PCP | M36: Apelles | N36: Raymond | O36: WFTF Piston | Q36: Vaeth | R36: Richard | S36: Hunter PCP | U36: Cunningham | V36: Dave | W36: WFTF Piston | Y36: Tenney | Z36: Sue | AA36: Hunter PCP | AC36: Cunningham | AD36: Dave | AE36: WFTF Piston
A37: Wilcox | B37: James | C37: Hunter Piston | E37: Thomas | F37: Nathan | G37: WFTF Piston | I37: Hargarther | J37: Nic | K37: Hunter PCP | M37: Thomas | N37: Nathan | O37: WFTF Piston | Q37: VanWhy | R37: Daryl | S37: Hunter PCP | U37: Gonzales | V37: Virgilio | W37: WFTF Piston | Y37: Vaeth | Z37: Richard | AA37: Hunter PCP | AC37: Gonzales | AD37: Virgilio | AE37: WFTF Piston
A38: Brewer | B38: Eric | C38: Hunter Piston | E38: Cunningham | F38: Dave | G38: WFTF Piston | I38: Hargarther Jr. | J38: Nicholas | K38: Hunter PCP | M38: Cunningham | N38: Dave | O38: WFTF Piston | Q38: Vaughan | R38: Gregory | S38: Hunter PCP | U38: LaRocca | V38: Jerry | W38: WFTF Piston | Y38: VanWhy | Z38: Daryl | AA38: Hunter PCP | AC38: LaRocca | AD38: Jerry | AE38: WFTF Piston
A39: Brewer | B39: Peg | C39: Hunter Piston | E39: Brackett | F39: Matt | G39: WFTF Piston | I39: Manktelow | J39: Paul | K39: Hunter Piston | M39: Brackett | N39: Matt | O39: WFTF Piston | Q39: Wade | R39: Thomas | S39: Hunter PCP | U39: MacSweyn | V39: Tim | W39: WFTF Piston | Y39: Vaughan | Z39: Gregory | AA39: Hunter PCP | AC39: MacSweyn | AD39: Tim | AE39: WFTF Piston
A40: Shirhall | B40: Gregory | C40: Hunter Piston | E40: Evans | F40: Craig | G40: Freestyle PCP | I40: Wilcox | J40: James | K40: Hunter Piston | M40: Evans | N40: Craig | O40: Freestyle PCP | Q40: Manktelow | R40: Paul | S40: Hunter Piston | U40: Medina-Gomez | V40: Hector | W40: WFTF Piston | Y40: Wade | Z40: Thomas | AA40: Hunter PCP | AC40: Medina-Gomez | AD40: Hector | AE40: WFTF Piston
I41: Brewer | J41: Eric | K41: Hunter Piston | Q41: Shirhall | R41: Gregory | S41: Hunter Piston | U41: Thomas | V41: Nathan | W41: WFTF Piston | Y41: Manktelow | Z41: Paul | AA41: Hunter Piston | AC41: Thomas | AD41: Nathan | AE41: WFTF Piston
I42: Brewer | J42: Peg | K42: Hunter Piston | Q42: Wilcox | R42: James | S42: Hunter Piston | U42: Evans | V42: Craig | W42: Freestyle PCP | Y42: Shirhall | Z42: Gregory | AA42: Hunter Piston | AC42: Evans | AD42: Craig | AE42: Freestyle PCP
I43: Shirhall | J43: Gregory | K43: Hunter Piston | Y43: Wilcox | Z43: James | AA43: Hunter Piston

Sheet Sheet2 (2)
A1: Last Name | B1: First Name | C1: Division | E1: Woods | F1: Field | G1: Total | H1: Overall Place | I1: % vs Match High
A2: Cimbalo | B2: John | C2: Hunter PCP | E2: 43 | F2: 0 | G2: =IF(E2=0,"DNF",IF(F2=0,"DNF",SUM(E2:F2))) -> DNF
A3: Daigneault | B3: Tom | C3: Hunter PCP | E3: 33 | F3: 0 | G3: DNF
A4: Felton, Jr. | B4: Robert | C4: Hunter PCP | E4: 33 | F4: 0 | G4: DNF
A5: McIntosh | B5: Robert | C5: Hunter PCP | E5: 38 | F5: 0 | G5: DNF
A6: Miller | B6: Tom | C6: Hunter PCP | E6: 41 | F6: 0 | G6: DNF
A7: Rehm | B7: Rick | C7: Hunter PCP | E7: 40 | F7: 0 | G7: DNF
A8: Rouillard | B8: Louis-Philippe | C8: Hunter PCP | E8: 0 | F8: 0 | G8: DNF
A9: Szeles | B9: Nora | C9: Hunter PCP | E9: 0 | F9: 0 | G9: DNF
A10: Tenney | B10: Ed | C10: Hunter PCP | E10: 33 | F10: 0 | G10: DNF
A11: Tenney | B11: Sue | C11: Hunter PCP | E11: 45 | F11: 0 | G11: DNF
A12: Varney | B12: Paul | C12: Hunter PCP | E12: 43 | F12: 0 | G12: DNF
A13: Barker | B13: Roger | C13: Open PCP | E13: 0 | F13: 27 | G13: DNF
A14: Otter | B14: Albert | C14: Open PCP | E14: 0 | F14: 34 | G14: DNF
A15: Paulsen | B15: Rosalie | C15: Open PCP | E15: 0 | F15: 24 | G15: DNF
A16: Tenney | B16: Skip (Noel) | C16: Open PCP | E16: 0 | F16: 37 | G16: DNF
A17: Bassett | B17: Richard | C17: WFTF PCP | E17: 0 | F17: 37 | G17: DNF
A18: Coss | B18: Kristen | C18: WFTF PCP | E18: 0 | F18: 0 | G18: DNF
A19: Harris | B19: Mike | C19: WFTF PCP | E19: 0 | F19: 33 | G19: DNF
A20: Harris | B20: Jamir | C20: WFTF PCP | E20: 0 | F20: 14 | G20: DNF
A21: Patner | B21: Tyler | C21: WFTF PCP | E21: 58 | F21: 0 | G21: DNF
A22: Rabbitt | B22: Bill | C22: WFTF PCP | E22: 52 | F22: 0 | G22: DNF
A23: Vandenboom | B23: Brian | C23: WFTF PCP | E23: 0 | F23: 43 | G23: DNF
A24: LaRocca | B24: Jerry | C24: WFTF Piston | E24: 0 | F24: 26 | G24: DNF
A25: Apelles | B25: Hans | C25: Freestyle PCP | E25: 0 | F25: 27 | G25: DNF
A26: John | B26: Myers | C26: JUNIOR | E26: 83 | F26: 90 | G26: 173
A27: Hargarther Jr. | B27: Nicholas | C27: JUNIOR | E27: 62 | F27: 60 | G27: 122
A28: Himes | B28: Thomas | C28: Hunter PCP | E28: 53 | F28: 55 | G28: 108 | H28: 1 | I28: =G28/MAX($G$28:$G$89) -> 1
A29: Himes | B29: Dennis | C29: Hunter PCP | E29: 57 | F29: 51 | G29: 108 | H29: 2 | I29: =G29/MAX($G$28:$G$89) -> 1
A30: Piatt | B30: Will | C30: Open PCP | E30: 57 | F30: 49 | G30: 106 | H30: 3 | I30: 0.9814814815
A31: Little | B31: Jeff | C31: Hunter PCP | E31: 53 | F31: 51 | G31: 104 | H31: 4 | I31: 0.962962963
A32: McDaniel | B32: Sean | C32: Hunter PCP | E32: 53 | F32: 51 | G32: 104 | H32: 5 | I32: 0.962962963
A33: Sauve | B33: Greg | C33: WFTF PCP | E33: 54 | F33: 48 | G33: 102 | H33: 6 | I33: 0.9444444444
A34: Brooks | B34: Peter | C34: WFTF PCP | E34: 57 | F34: 44 | G34: 101 | H34: 7 | I34: 0.9351851852
A35: Paddock | B35: Jeff | C35: WFTF PCP | E35: 55 | F35: 46 | G35: 101 | H35: 8 | I35: 0.9351851852
A36: Day | B36: Bill | C36: Hunter PCP | E36: 54 | F36: 46 | G36: 100 | H36: 9 | I36: 0.9259259259
A37: Morales | B37: Manuel | C37: WFTF PCP | E37: 58 | F37: 42 | G37: 100 | H37: 10 | I37: 0.9259259259
A38: VanLiew | B38: Brian | C38: Open PCP | E38: 57 | F38: 42 | G38: 99 | H38: 11 | I38: 0.9166666667
A39: Parsons | B39: Lauren | C39: WFTF PCP | E39: 53 | F39: 46 | G39: 99 | H39: 12 | I39: 0.9166666667
A40: Pragle | B40: Shawn | C40: Hunter PCP | E40: 49 | F40: 49 | G40: 98 | H40: 13 | I40: 0.9074074074
A41: Hughes | B41: Ken | C41: WFTF PCP | E41: 57 | F41: 41 | G41: 98 | H41: 14 | I41: 0.9074074074
A42: Dunlap | B42: Douglas | C42: Hunter PCP | E42: 50 | F42: 46 | G42: 96 | H42: 15 | I42: 0.8888888889
A43: Ryan | B43: Thomas | C43: Hunter PCP | E43: 52 | F43: 43 | G43: 95 | H43: 16 | I43: 0.8796296296
A44: Holland | B44: Tom | C44: WFTF PCP | E44: 55 | F44: 40 | G44: 95 | H44: 17 | I44: 0.8796296296
A45: Kentner | B45: Chad | C45: Hunter PCP | E45: 51 | F45: 43 | G45: 94 | H45: 18 | I45: 0.8703703704
A46: Brown | B46: Ron | C46: WFTF PCP | E46: 56 | F46: 38 | G46: 94 | H46: 19 | I46: 0.8703703704
A47: Vaughan | B47: Gregory | C47: Hunter PCP | E47: 51 | F47: 42 | G47: 93 | H47: 20 | I47: 0.8611111111
A48: Kunkle | B48: Kevin | C48: Hunter PCP | E48: 46 | F48: 46 | G48: 92 | H48: 21 | I48: 0.8518518519
A49: Landry | B49: Ryan | C49: Hunter PCP | E49: 45 | F49: 46 | G49: 91 | H49: 22 | I49: 0.8425925926
A50: Palinkas | B50: Gary | C50: Open PCP | E50: 49 | F50: 41 | G50: 90 | H50: 23 | I50: 0.8333333333
A51: DeBoard | B51: Mark | C51: Hunter PCP | E51: 44 | F51: 45 | G51: 89 | H51: 24 | I51: 0.8240740741
A52: Thomas | B52: Nathan | C52: WFTF Piston | E52: 51 | F52: 38 | G52: 89 | H52: 25 | I52: 0.8240740741
A53: Shirhall | B53: Gregory | C53: Hunter Piston | E53: 45 | F53: 43 | G53: 88 | H53: 26 | I53: 0.8148148148
A54: Wade | B54: Thomas | C54: Hunter PCP | E54: 47 | F54: 40 | G54: 87 | H54: 27 | I54: 0.8055555556
A55: Apelles | B55: Raymond | C55: WFTF Piston | E55: 51 | F55: 36 | G55: 87 | H55: 28 | I55: 0.8055555556
A56: MacSweyn | B56: Tim | C56: WFTF Piston | E56: 52 | F56: 35 | G56: 87 | H56: 29 | I56: 0.8055555556
A57: Hann | B57: Lanny | C57: Open PCP | E57: 45 | F57: 40 | G57: 85 | H57: 30 | I57: 0.787037037
A58: Gonzales | B58: Virgilio | C58: WFTF Piston | E58: 46 | F58: 39 | G58: 85 | H58: 31 | I58: 0.787037037
A59: Baker | B59: Dennis | C59: Hunter PCP | E59: 45 | F59: 38 | G59: 83 | H59: 32 | I59: 0.7685185185
A60: Hargarther | B60: Nic | C60: Hunter PCP | E60: 38 | F60: 45 | G60: 83 | H60: 33 | I60: 0.7685185185
A61: Vaeth | B61: Richard | C61: Hunter PCP | E61: 46 | F61: 37 | G61: 83 | H61: 34 | I61: =G61/MAX($G$28:$G$89) -> 0.7685185185
A62: Norris | B62: Michael | C62: Open PCP | E62: 45 | F62: 38 | G62: 83 | H62: 35 | I62: 0.7685185185
A63: VanWhy | B63: Daryl | C63: Hunter PCP | E63: 43 | F63: 38 | G63: 81 | H63: 36 | I63: 0.75
A64: Eden | B64: Dennis | C64: Open PCP | E64: 47 | F64: 34 | G64: 81 | H64: 37 | I64: 0.75
A65: Porch | B65: Paul | C65: Open PCP | E65: 38 | F65: 42 | G65: 80 | H65: 38 | I65: 0.7407407407
A66: Dunlap | B66: Betsy | C66: Hunter PCP | E66: 45 | F66: 34 | G66: =IF(E66=0,"DNF",IF(F66=0,"DNF",SUM(E66:F66))) -> 79 | H66: 39 | I66: 0.7314814815
A67: Morrison Sr. | B67: Jody | C67: Hunter PCP | E67: 44 | F67: 35 | G67: 79 | H67: 40 | I67: 0.7314814815
A68: Rogers | B68: Levi | C68: Hunter PCP | E68: 37 | F68: 39 | G68: 76 | H68: 41 | I68: 0.7037037037
A69: Eroh | B69: John | C69: WFTF PCP | E69: 51 | F69: 25 | G69: 76 | H69: 42 | I69: 0.7037037037
A70: Brackett | B70: Matt | C70: WFTF Piston | E70: 43 | F70: 33 | G70: 76 | H70: 43 | I70: 0.7037037037
A71: Snyder | B71: Joseph | C71: WFTF PCP | E71: 46 | F71: 29 | G71: 75 | H71: 44 | I71: 0.6944444444
A72: Thomas | B72: Glenn | C72: WFTF PCP | E72: 44 | F72: 31 | G72: 75 | H72: 45 | I72: 0.6944444444
A73: Burley | B73: Ken | C73: Hunter PCP | E73: 38 | F73: 36 | G73: 74 | H73: 46 | I73: 0.6851851852
A74: LaRocca | B74: Gary | C74: Open PCP | E74: 41 | F74: 33 | G74: 74 | H74: 47 | I74: 0.6851851852
A75: Rogers | B75: Douglas | C75: Hunter PCP | E75: 38 | F75: 35 | G75: 73 | H75: 48 | I75: 0.6759259259
A76: Medina-Gomez | B76: Hector | C76: WFTF Piston | E76: 44 | F76: 28 | G76: 72 | H76: 49 | I76: 0.6666666667
A77: Manktelow | B77: Paul | C77: Hunter Piston | E77: 39 | F77: 32 | G77: 71 | H77: 50 | I77: 0.6574074074
A78: Dipple | B78: Greg | C78: Hunter PCP | E78: 38 | F78: 29 | G78: 67 | H78: 51 | I78: 0.6203703704
A79: Povroznyk | B79: Vasyl | C79: Open PCP | E79: 39 | F79: 28 | G79: 67 | H79: 52 | I79: 0.6203703704
A80: Evans | B80: Craig | C80: Freestyle PCP | E80: 41 | F80: 25 | G80: 66 | H80: 53 | I80: 0.6111111111
A81: Andro | B81: Ted | C81: Hunter PCP | E81: 42 | F81: 23 | G81: 65 | H81: 54 | I81: 0.6018518519
A82: Burley | B82: Susan | C82: Hunter PCP | E82: 37 | F82: 28 | G82: 65 | H82: 55 | I82: 0.6018518519
A83: Duranti | B83: Bill | C83: Hunter PCP | E83: 38 | F83: 25 | G83: 63 | H83: 56 | I83: 0.5833333333
A84: Miller | B84: Wally | C84: Hunter PCP | E84: 28 | F84: 25 | G84: 53 | H84: 57 | I84: 0.4907407407
A85: Landry | B85: Reg | C85: Hunter PCP | E85: 25 | F85: 26 | G85: 51 | H85: 58 | I85: 0.4722222222
A86: Wilcox | B86: James | C86: Hunter Piston | E86: 28 | F86: 20 | G86: 48 | H86: 59 | I86: 0.4444444444
A87: Ours | B87: Joe | C87: Hunter PCP | E87: 24 | F87: 20 | G87: 44 | H87: 60 | I87: 0.4074074074
A88: Cunningham | B88: Dave | C88: WFTF Piston | E88: 22 | F88: 19 | G88: 41 | H88: 61 | I88: 0.3796296296
A89: Garland | B89: Anthony | C89: Open Piston | E89: 23 | F89: 14 | G89: 37 | H89: 62 | I89: 0.3425925926

Sheet Sheet2 (3)
A1: Last Name | B1: First Name | C1: Division | E1: Woods | F1: Field | G1: Total | H1: Place in Class | I1: % vs Match High
A2: Apelles | B2: Hans | C2: Freestyle PCP | E2: 0 | F2: 27 | G2: =IF(E2=0,"DNF",IF(F2=0,"DNF",SUM(E2:F2))) -> DNF
A3: Evans | B3: Craig | C3: Freestyle PCP | E3: 41 | F3: 25 | G3: 66 | H3: 1 | I3: =G3/$J$3 -> 0.6111111111 | J3: 108
A4: Cimbalo | B4: John | C4: Hunter PCP | E4: 43 | F4: 0 | G4: DNF | H4: 2 | I4: =G4/$J$3 -> 
A5: Daigneault | B5: Tom | C5: Hunter PCP | E5: 33 | F5: 0 | G5: DNF
A6: Felton, Jr. | B6: Robert | C6: Hunter PCP | E6: 33 | F6: 0 | G6: DNF
A7: McIntosh | B7: Robert | C7: Hunter PCP | E7: 38 | F7: 0 | G7: DNF
A8: Miller | B8: Tom | C8: Hunter PCP | E8: 41 | F8: 0 | G8: DNF
A9: Rehm | B9: Rick | C9: Hunter PCP | E9: 40 | F9: 0 | G9: DNF
A10: Rouillard | B10: Louis-Philippe | C10: Hunter PCP | E10: 0 | F10: 0 | G10: DNF
A11: Szeles | B11: Nora | C11: Hunter PCP | E11: 0 | F11: 0 | G11: DNF
A12: Tenney | B12: Ed | C12: Hunter PCP | E12: 33 | F12: 0 | G12: DNF
A13: Tenney | B13: Sue | C13: Hunter PCP | E13: 45 | F13: 0 | G13: DNF
A14: Varney | B14: Paul | C14: Hunter PCP | E14: 43 | F14: 0 | G14: DNF
A15: Himes | B15: Thomas | C15: Hunter PCP | E15: 53 | F15: 55 | G15: 108 | H15: 1 | I15: 1
A16: Himes | B16: Dennis | C16: Hunter PCP | E16: 57 | F16: 51 | G16: 108 | H16: 2 | I16: 1
A17: Little | B17: Jeff | C17: Hunter PCP | E17: 53 | F17: 51 | G17: 104 | H17: 3 | I17: 0.962962963
A18: McDaniel | B18: Sean | C18: Hunter PCP | E18: 53 | F18: 51 | G18: 104 | H18: 4 | I18: 0.962962963
A19: Day | B19: Bill | C19: Hunter PCP | E19: 54 | F19: 46 | G19: 100 | H19: 5 | I19: 0.9259259259
A20: Pragle | B20: Shawn | C20: Hunter PCP | E20: 49 | F20: 49 | G20: 98 | H20: 6 | I20: 0.9074074074
A21: Dunlap | B21: Douglas | C21: Hunter PCP | E21: 50 | F21: 46 | G21: 96 | H21: 7 | I21: 0.8888888889
A22: Ryan | B22: Thomas | C22: Hunter PCP | E22: 52 | F22: 43 | G22: 95 | H22: 8 | I22: 0.8796296296
A23: Kentner | B23: Chad | C23: Hunter PCP | E23: 51 | F23: 43 | G23: 94 | H23: 9 | I23: 0.8703703704
A24: Vaughan | B24: Gregory | C24: Hunter PCP | E24: 51 | F24: 42 | G24: 93 | H24: 10 | I24: 0.8611111111
A25: Kunkle | B25: Kevin | C25: Hunter PCP | E25: 46 | F25: 46 | G25: 92 | H25: 11 | I25: 0.8518518519
A26: Landry | B26: Ryan | C26: Hunter PCP | E26: 45 | F26: 46 | G26: 91 | H26: 12 | I26: 0.8425925926
A27: DeBoard | B27: Mark | C27: Hunter PCP | E27: 44 | F27: 45 | G27: 89 | H27: 13 | I27: 0.8240740741
A28: Wade | B28: Thomas | C28: Hunter PCP | E28: 47 | F28: 40 | G28: 87 | H28: 14 | I28: 0.8055555556
A29: Baker | B29: Dennis | C29: Hunter PCP | E29: 45 | F29: 38 | G29: 83 | H29: 15 | I29: 0.7685185185
A30: Hargarther | B30: Nic | C30: Hunter PCP | E30: 38 | F30: 45 | G30: 83 | H30: 16 | I30: 0.7685185185
A31: Vaeth | B31: Richard | C31: Hunter PCP | E31: 46 | F31: 37 | G31: 83 | H31: 17 | I31: 0.7685185185
A32: VanWhy | B32: Daryl | C32: Hunter PCP | E32: 43 | F32: 38 | G32: 81 | H32: 18 | I32: 0.75
A33: Dunlap | B33: Betsy | C33: Hunter PCP | E33: 45 | F33: 34 | G33: 79 | H33: 19 | I33: 0.7314814815
A34: Morrison Sr. | B34: Jody | C34: Hunter PCP | E34: 44 | F34: 35 | G34: 79 | H34: 20 | I34: 0.7314814815
A35: Rogers | B35: Levi | C35: Hunter PCP | E35: 37 | F35: 39 | G35: 76 | H35: 21 | I35: 0.7037037037
A36: Burley | B36: Ken | C36: Hunter PCP | E36: 38 | F36: 36 | G36: 74 | H36: 22 | I36: =G36/$J$3 -> 0.6851851852
A37: Rogers | B37: Douglas | C37: Hunter PCP | E37: 38 | F37: 35 | G37: 73 | H37: 23 | I37: 0.6759259259
A38: Dipple | B38: Greg | C38: Hunter PCP | E38: 38 | F38: 29 | G38: 67 | H38: 24 | I38: 0.6203703704
A39: Andro | B39: Ted | C39: Hunter PCP | E39: 42 | F39: 23 | G39: 65 | H39: 25 | I39: 0.6018518519
A40: Burley | B40: Susan | C40: Hunter PCP | E40: 37 | F40: 28 | G40: 65 | H40: 26 | I40: 0.6018518519
A41: Duranti | B41: Bill | C41: Hunter PCP | E41: 38 | F41: 25 | G41: 63 | H41: 27 | I41: 0.5833333333
A42: Miller | B42: Wally | C42: Hunter PCP | E42: 28 | F42: 25 | G42: 53 | H42: 28 | I42: 0.4907407407
A43: Landry | B43: Reg | C43: Hunter PCP | E43: 25 | F43: 26 | G43: 51 | H43: 29 | I43: 0.4722222222
A44: Ours | B44: Joe | C44: Hunter PCP | E44: 24 | F44: 20 | G44: 44 | H44: 30 | I44: 0.4074074074
A45: Shirhall | B45: Gregory | C45: Hunter Piston | E45: 45 | F45: 43 | G45: 88 | H45: 1 | I45: 0.8148148148
A46: Manktelow | B46: Paul | C46: Hunter Piston | E46: 39 | F46: 32 | G46: 71 | H46: 2 | I46: 0.6574074074
A47: Wilcox | B47: James | C47: Hunter Piston | E47: 28 | F47: 20 | G47: 48 | H47: 3 | I47: 0.4444444444
A48: John | B48: Myers | C48: JUNIOR | E48: 83 | F48: 90 | G48: 173 | H48: 1
A49: Hargarther Jr. | B49: Nicholas | C49: JUNIOR | E49: 62 | F49: 60 | G49: 122 | H49: 2
A50: Barker | B50: Roger | C50: Open PCP | E50: 0 | F50: 27 | G50: DNF | H50: 23
A51: Otter | B51: Albert | C51: Open PCP | E51: 0 | F51: 34 | G51: DNF | H51: 24
A52: Paulsen | B52: Rosalie | C52: Open PCP | E52: 0 | F52: 24 | G52: DNF | H52: 25
A53: Tenney | B53: Skip (Noel) | C53: Open PCP | E53: 0 | F53: 37 | G53: DNF | H53: 26
A54: Piatt | B54: Will | C54: Open PCP | E54: 57 | F54: 49 | G54: 106 | H54: 1 | I54: 0.9814814815
A55: VanLiew | B55: Brian | C55: Open PCP | E55: 57 | F55: 42 | G55: 99 | H55: 2 | I55: 0.9166666667
A56: Palinkas | B56: Gary | C56: Open PCP | E56: 49 | F56: 41 | G56: 90 | H56: 3 | I56: 0.8333333333
A57: Hann | B57: Lanny | C57: Open PCP | E57: 45 | F57: 40 | G57: 85 | H57: 4 | I57: 0.787037037
A58: Norris | B58: Michael | C58: Open PCP | E58: 45 | F58: 38 | G58: 83 | H58: 5 | I58: 0.7685185185
A59: Eden | B59: Dennis | C59: Open PCP | E59: 47 | F59: 34 | G59: 81 | H59: 6 | I59: 0.75
A60: Porch | B60: Paul | C60: Open PCP | E60: 38 | F60: 42 | G60: 80 | H60: 7 | I60: 0.7407407407
A61: LaRocca | B61: Gary | C61: Open PCP | E61: 41 | F61: 33 | G61: 74 | H61: 8 | I61: 0.6851851852
A62: Povroznyk | B62: Vasyl | C62: Open PCP | E62: 39 | F62: 28 | G62: 67 | H62: 9 | I62: 0.6203703704
A63: Garland | B63: Anthony | C63: Open Piston | E63: 23 | F63: 14 | G63: 37 | H63: 1 | I63: 0.3425925926
A64: Bassett | B64: Richard | C64: WFTF PCP | E64: 0 | F64: 37 | G64: DNF | H64: 37
A65: Coss | B65: Kristen | C65: WFTF PCP | E65: 0 | F65: 0 | G65: DNF | H65: 38
A66: Harris | B66: Mike | C66: WFTF PCP | E66: 0 | F66: 33 | G66: =IF(E66=0,"DNF",IF(F66=0,"DNF",SUM(E66:F66))) -> DNF | H66: 39
A67: Harris | B67: Jamir | C67: WFTF PCP | E67: 0 | F67: 14 | G67: DNF | H67: 40
A68: Patner | B68: Tyler | C68: WFTF PCP | E68: 58 | F68: 0 | G68: DNF | H68: 41 | I68: =G68/$J$3 -> 
A69: Rabbitt | B69: Bill | C69: WFTF PCP | E69: 52 | F69: 0 | G69: DNF | H69: 42
A70: Vandenboom | B70: Brian | C70: WFTF PCP | E70: 0 | F70: 43 | G70: DNF | H70: 43
A71: Sauve | B71: Greg | C71: WFTF PCP | E71: 54 | F71: 48 | G71: 102 | H71: 1 | I71: 0.9444444444
A72: Brooks | B72: Peter | C72: WFTF PCP | E72: 57 | F72: 44 | G72: 101 | H72: 2 | I72: 0.9351851852
A73: Paddock | B73: Jeff | C73: WFTF PCP | E73: 55 | F73: 46 | G73: 101 | H73: 3 | I73: 0.9351851852
A74: Morales | B74: Manuel | C74: WFTF PCP | E74: 58 | F74: 42 | G74: 100 | H74: 4 | I74: 0.9259259259
A75: Parsons | B75: Lauren | C75: WFTF PCP | E75: 53 | F75: 46 | G75: 99 | H75: 5 | I75: 0.9166666667
A76: Hughes | B76: Ken | C76: WFTF PCP | E76: 57 | F76: 41 | G76: 98 | H76: 6 | I76: 0.9074074074
A77: Holland | B77: Tom | C77: WFTF PCP | E77: 55 | F77: 40 | G77: 95 | H77: 7 | I77: 0.8796296296
A78: Brown | B78: Ron | C78: WFTF PCP | E78: 56 | F78: 38 | G78: 94 | H78: 8 | I78: 0.8703703704
A79: Eroh | B79: John | C79: WFTF PCP | E79: 51 | F79: 25 | G79: 76 | H79: 9 | I79: 0.7037037037
A80: Snyder | B80: Joseph | C80: WFTF PCP | E80: 46 | F80: 29 | G80: 75 | H80: 10 | I80: 0.6944444444
A81: Thomas | B81: Glenn | C81: WFTF PCP | E81: 44 | F81: 31 | G81: 75 | H81: 11 | I81: 0.6944444444
A82: LaRocca | B82: Jerry | C82: WFTF Piston | E82: 0 | F82: 26 | G82: DNF | H82: 55
A83: Thomas | B83: Nathan | C83: WFTF Piston | E83: 51 | F83: 38 | G83: 89 | H83: 1 | I83: 0.8240740741
A84: Apelles | B84: Raymond | C84: WFTF Piston | E84: 51 | F84: 36 | G84: 87 | H84: 2 | I84: 0.8055555556
A85: MacSweyn | B85: Tim | C85: WFTF Piston | E85: 52 | F85: 35 | G85: 87 | H85: 3 | I85: 0.8055555556
A86: Gonzales | B86: Virgilio | C86: WFTF Piston | E86: 46 | F86: 39 | G86: 85 | H86: 4 | I86: 0.787037037
A87: Brackett | B87: Matt | C87: WFTF Piston | E87: 43 | F87: 33 | G87: 76 | H87: 5 | I87: 0.7037037037
A88: Medina-Gomez | B88: Hector | C88: WFTF Piston | E88: 44 | F88: 28 | G88: 72 | H88: 6 | I88: 0.6666666667
A89: Cunningham | B89: Dave | C89: WFTF Piston | E89: 22 | F89: 19 | G89: 41 | H89: 7 | I89: 0.3796296296

Sheet Sheet2 (4)
A1: Last Name | B1: First Name | C1: Division | E1: Total | F1: Overall Place | G1: % vs Match High
A2: Rabbitt | B2: Bill | C2: Open | E2: 49 | F2: 1 | G2: =E2/$I$2 -> 1 | I2: 49
A3: Thomas | B3: Nathan | C3: Open | E3: 49 | F3: 2 | G3: =E3/$I$2 -> 1 | H3: 108
A4: Kunkle | B4: Kevin | C4: Hunter | E4: 45 | F4: 3 | G4: 0.9183673469
A5: Paddock | B5: Jeff | C5: Open | E5: 44 | F5: 4 | G5: 0.8979591837
A6: Patner | B6: Tyle | C6: Open | E6: 44 | F6: 5 | G6: 0.8979591837
A7: Evans | B7: Craig | C7: Hunter | E7: 43 | F7: 6 | G7: 0.8775510204
A8: Brown | B8: Ron | C8: Hunter | E8: 42 | F8: 7 | G8: 0.8571428571
A9: Porch | B9: Paul | C9: Hunter | E9: 39 | F9: 8 | G9: 0.7959183673
A10: McDaniel | B10: Sean | C10: Hunter | E10: 39 | F10: 9 | G10: 0.7959183673
A11: Norris | B11: Michael | C11: Hunter | E11: 38 | F11: 10 | G11: 0.7755102041
A12: Morales | B12: Manuel | C12: Open | E12: 38 | F12: 11 | G12: 0.7755102041
A13: Day | B13: Bill | C13: Hunter | E13: 36 | F13: 12 | G13: 0.7346938776
A14: Palinkas | B14: Gary | C14: Hunter | E14: 36 | F14: 13 | G14: 0.7346938776
A15: Povroznyk | B15: Vasyl | C15: Open | E15: 36 | F15: 14 | G15: 0.7346938776
A16: Cimbalo | B16: John | C16: Hunter | E16: 33 | F16: 15 | G16: 0.6734693878
A17: Thomas | B17: Glenn | C17: Hunter | E17: 33 | F17: 16 | G17: 0.6734693878
A18: Miller | B18: Tom | C18: Hunter | E18: 31 | F18: 17 | G18: 0.6326530612
A19: Landry | B19: Ryan | C19: Hunter | E19: 30 | F19: 18 | G19: 0.612244898
A20: Pragle | B20: Shawn | C20: Hunter | E20: 26 | F20: 19 | G20: 0.5306122449
A21: Andro | B21: Ted | C21: Hunter | E21: 24 | F21: 20 | G21: 0.4897959184
A22: Morrison Sr | B22: Jody | C22: Hunter | E22: 24 | F22: 21 | G22: 0.4897959184
A23: Vanwhy | B23: Daryk | C23: Hunter | E23: 24 | F23: 22 | G23: 0.4897959184
A24: Tenney | B24: Skip (Noel) | C24: Hunter | E24: 22 | F24: 23 | G24: 0.4489795918
A25: Tenney | B25: Ed | C25: Hunter | E25: 20 | F25: 24 | G25: 0.4081632653
A26: McIntosh | B26: Robert | C26: Hunter | E26: 19 | F26: 25 | G26: 0.387755102
A27: Miller | B27: Wally | C27: Hunter | E27: 18 | F27: 26 | G27: 0.3673469388
A28: Landry | B28: Reg | C28: Hunter | E28: 17 | F28: 27 | G28: 0.3469387755
A29: Eden | B29: Dennis | C29: Open | E29: 17 | F29: 28 | G29: 0.3469387755
A30: Vaughan | B30: Gregory | C30: Hunter | E30: 16 | F30: 29 | G30: 0.3265306122
A31: Dunlap | B31: Douglas | C31: Hunter | E31: 15 | F31: 30 | G31: 0.306122449
A32: Felton, Jr | B32: Robert | C32: Hunter | E32: 14 | F32: 31 | G32: 0.2857142857
A33: Gonzales | B33: Virgilio | C33: Hands | E33: 9 | F33: 32 | G33: 0.1836734694
A34: Eroh | B34: John | C34: Hands | E34: 8 | F34: 33 | G34: 0.1632653061
A35: Hann | B35: Lanny | C35: Open | E35: 8 | F35: 34 | G35: 0.1632653061
A36: Apelles | B36: Raymond | C36: Hands | E36: 7 | F36: 35 | G36: 0.1428571429
A37: Garland | B37: Anthony | C37: Open | E37: 6 | F37: 36 | G37: 0.1224489796
A38: Wade | B38: Thomas | C38: Hands | E38: 1 | F38: 37 | G38: 0.02040816327

Sheet Sheet2 (5)
A1: Last Name | B1: First Name | C1: Division | E1: Total | F1: Overall Place | G1: % vs Match High
A2: Gonzales | B2: Virgilio | C2: Hands | E2: 9 | F2: 1 | G2: =E2/$I$2 -> 0.1836734694 | I2: 49
A3: Eroh | B3: John | C3: Hands | E3: 8 | F3: 2 | G3: =E3/$I$2 -> 0.1632653061 | H3: 108
A4: Apelles | B4: Raymond | C4: Hands | E4: 7 | F4: 3 | G4: =E4/$I$2 -> 0.1428571429
A5: Wade | B5: Thomas | C5: Hands | E5: 1 | F5: 4 | G5: =E5/$I$2 -> 0.02040816327
A6: Kunkle | B6: Kevin | C6: Hunter | E6: 45 | F6: 1 | G6: =E6/$I$2 -> 0.9183673469
A7: Evans | B7: Craig | C7: Hunter | E7: 43 | F7: 2 | G7: =E7/$I$2 -> 0.8775510204
A8: Brown | B8: Ron | C8: Hunter | E8: 42 | F8: 3 | G8: =E8/$I$2 -> 0.8571428571
A9: Porch | B9: Paul | C9: Hunter | E9: 39 | F9: 4 | G9: =E9/$I$2 -> 0.7959183673
A10: McDaniel | B10: Sean | C10: Hunter | E10: 39 | F10: 5 | G10: =E10/$I$2 -> 0.7959183673
A11: Norris | B11: Michael | C11: Hunter | E11: 38 | F11: 6 | G11: =E11/$I$2 -> 0.7755102041
A12: Day | B12: Bill | C12: Hunter | E12: 36 | F12: 7 | G12: =E12/$I$2 -> 0.7346938776
A13: Palinkas | B13: Gary | C13: Hunter | E13: 36 | F13: 8 | G13: =E13/$I$2 -> 0.7346938776
A14: Cimbalo | B14: John | C14: Hunter | E14: 33 | F14: 9 | G14: =E14/$I$2 -> 0.6734693878
A15: Thomas | B15: Glenn | C15: Hunter | E15: 33 | F15: 10 | G15: =E15/$I$2 -> 0.6734693878
A16: Miller | B16: Tom | C16: Hunter | E16: 31 | F16: 11 | G16: =E16/$I$2 -> 0.6326530612
A17: Landry | B17: Ryan | C17: Hunter | E17: 30 | F17: 12 | G17: =E17/$I$2 -> 0.612244898
A18: Pragle | B18: Shawn | C18: Hunter | E18: 26 | F18: 13 | G18: =E18/$I$2 -> 0.5306122449
A19: Andro | B19: Ted | C19: Hunter | E19: 24 | F19: 14 | G19: =E19/$I$2 -> 0.4897959184
A20: Morrison Sr | B20: Jody | C20: Hunter | E20: 24 | F20: 15 | G20: =E20/$I$2 -> 0.4897959184
A21: Vanwhy | B21: Daryk | C21: Hunter | E21: 24 | F21: 16 | G21: =E21/$I$2 -> 0.4897959184
A22: Tenney | B22: Skip (Noel) | C22: Hunter | E22: 22 | F22: 17 | G22: =E22/$I$2 -> 0.4489795918
A23: Tenney | B23: Ed | C23: Hunter | E23: 20 | F23: 18 | G23: =E23/$I$2 -> 0.4081632653
A24: McIntosh | B24: Robert | C24: Hunter | E24: 19 | F24: 19 | G24: =E24/$I$2 -> 0.387755102
A25: Miller | B25: Wally | C25: Hunter | E25: 18 | F25: 20 | G25: =E25/$I$2 -> 0.3673469388
A26: Landry | B26: Reg | C26: Hunter | E26: 17 | F26: 21 | G26: =E26/$I$2 -> 0.3469387755
A27: Vaughan | B27: Gregory | C27: Hunter | E27: 16 | F27: 22 | G27: =E27/$I$2 -> 0.3265306122
A28: Dunlap | B28: Douglas | C28: Hunter | E28: 15 | F28: 23 | G28: =E28/$I$2 -> 0.306122449
A29: Felton, Jr | B29: Robert | C29: Hunter | E29: 14 | F29: 24 | G29: =E29/$I$2 -> 0.2857142857
A30: Rabbitt | B30: Bill | C30: Open | E30: 49 | F30: 1 | G30: =E30/$I$2 -> 1
A31: Thomas | B31: Nathan | C31: Open | E31: 49 | F31: 2 | G31: =E31/$I$2 -> 1
A32: Paddock | B32: Jeff | C32: Open | E32: 44 | F32: 3 | G32: =E32/$I$2 -> 0.8979591837
A33: Patner | B33: Tyle | C33: Open | E33: 44 | F33: 4 | G33: =E33/$I$2 -> 0.8979591837
A34: Morales | B34: Manuel | C34: Open | E34: 38 | F34: 5 | G34: =E34/$I$2 -> 0.7755102041
A35: Povroznyk | B35: Vasyl | C35: Open | E35: 36 | F35: 6 | G35: =E35/$I$2 -> 0.7346938776
A36: Eden | B36: Dennis | C36: Open | E36: 17 | F36: 7 | G36: =E36/$I$2 -> 0.3469387755
A37: Hann | B37: Lanny | C37: Open | E37: 8 | F37: 8 | G37: =E37/$I$2 -> 0.1632653061
A38: Garland | B38: Anthony | C38: Open | E38: 6 | F38: 9 | G38: =E38/$I$2 -> 0.1224489796
